Workbook

Sheet Calculator
F4: click below to change
B5: Crop type | E5: Crop type | F5: nabim 1 - wheat for breadmaking | V5: =F5 -> nabim 1 - wheat for breadmaking
E7: Planting season | F7: Winter | V7: =F7 -> Winter
I10: Select below:
B11: Yield | C11: 1 | E11: Yield | F11: 5 | G11: Tonnes per ha as : | I11: Fresh weight | V11: tonnes/ha fresh | W11: =W14*100/(100-F13) -> 5
E13: % moisture at harvest | F13: 20 | V13: water dried (tonnes) | W13: =(F13-F192)/100*W14 -> 0.22
V14: dry weight | W14: =IF(I11="Fresh weight",F11-F11*(F13/100),F11-F11*(F192/100)) -> 4
F17: Soil type percentages
B18: Soil type | E18: Light | F18: 100 | I18: =IF((F18+F20+F22)>100,"Error: total percentage of soil types must be less than 100","") ->  | V18: default medium | W18: =100-F18 -> 0 | X18: for data entry
E20: Medium | V20: default heavy | W20: =W18-F20 -> 0
E22: Heavy | V22: average soil carbon texture | W22: =(F18*1+F20*2+F22*3)/100 -> 1
F26: Click the arrows or move the bars below to alter the input values in the boxes | V26: Index for fertiliser look-up | W26: amount product applied (kg) | AB26: indirect from leaching | AE26: production technology (2 if abated N)
J27: %N | K27: % P2O5 | L27: % K2O | M27: % SO3 | N27: Abated Yes/No? | X27: %N | Y27: N applied | AA27: N2O emissions | AD27: ignoring fillers | AI27: fertiliser production emissions | AJ27: FYM applied | AK27: Compost applied | AL27: CaCO3 applied | AM27: Urea applied
E28: Ammonium nitrate | H28: 0 | J28: =OFFSET(H$227,$V28,) -> 0.34 | K28: =OFFSET(K$227,$V28,) -> 0 | L28: =OFFSET(L$227,$V28,) -> 0 | M28: =OFFSET(N$227,$V28,) -> 0 | N28: No | O28: =IF(AD28>1.05,"Please check analysis - nutrient levels are implausibly high","") ->  | V28: 2 | W28: =H28 -> 0 | X28: =J28 -> 0.34 | Y28: =X28*W28 -> 0 | AA28: =0.01*Y28 -> 0 | AB28: =0.01*0.3*Y28 -> 0 | AD28: =IF(ISERROR(J28/OFFSET(H$227,$V28,)),0,J28/OFFSET(H$227,$V28,)) -> 1 | AE28: =SUMIF(V$243:V$244,N28,W$243:W$244) -> 1 | AF28: Ammonium sulphate nitrate mix | AI28: =AD28*W28*OFFSET(Calculator!O$227,$V28,AE28) -> 0 | AJ28: =IF($E28<>"",IF(SUMIF($AC$304:$AC$306,$E28,$AG$304:$AG$306)=1,W28,0),0) -> 0 | AK28: =IF($E28<>"",IF(SUMIF($AC$304:$AC$306,$E28,$AG$304:$AG$306)=2,W28,0),0) -> 0 | AL28: =IF($E28<>"",IF(SUMIF($AC$304:$AC$306,$E28,AG$304:AG$306)=3,W28*OFFSET(Calculator!M$227,V28,0),0),0) -> 0 | AM28: =IF(E28=E$248,W28,IF(E28=E$249,W28*(0.25/0.73),0)) -> 0
E30: Ammonium sulphate | H30: 0 | J30: =OFFSET(H$227,$V30,) -> 0.21 | K30: =OFFSET(K$227,$V30,) -> 0 | L30: =OFFSET(L$227,$V30,) -> 0 | M30: =OFFSET(N$227,$V30,) -> 0.6 | O30: =IF(AD30>1.05,"Please check analysis - nutrient levels are implausibly high","") ->  | V30: 3 | W30: =H30 -> 0 | X30: =J30 -> 0.21 | Y30: 0 | AA30: =0.01*Y30 -> 0 | AB30: 0 | AD30: =IF(ISERROR(J30/OFFSET(H$227,$V30,)),0,J30/OFFSET(H$227,$V30,)) -> 1 | AE30: 1 | AF30: % AN | AG30: %AS | AI30: =AD30*W30*OFFSET(Calculator!O$227,$V30,AE30) -> 0 | AJ30: =IF($E30<>"",IF(SUMIF($AC$304:$AC$306,$E30,$AG$304:$AG$306)=1,W30,0),0) -> 0 | AK30: =IF($E30<>"",IF(SUMIF($AC$304:$AC$306,$E30,$AG$304:$AG$306)=2,W30,0),0) -> 0 | AL30: =IF($E30<>"",IF(SUMIF($AC$304:$AC$306,$E30,AG$304:AG$306)=3,W30*OFFSET(Calculator!M$227,V30,0),0),0) -> 0 | AM30: =IF(E30=E$248,W30,IF(E30=E$249,W30*(0.25/0.73),0)) -> 0
B32: N fertilisers | E32: Ammonium sulphate nitrate | H32: 0 | J32: 0.21 | K32: =OFFSET(K$227,$V32,) -> 0 | L32: =OFFSET(L$227,$V32,) -> 0 | M32: =OFFSET(N$227,$V32,) -> 0.6 | N32: No | O32: =IF(SUM(AF32:AG32)>1.05,"Please check analysis - nutrient levels are implausibly high","") ->  | V32: 4 | W32: =H32 -> 0 | X32: =J32 -> 0.21 | Y32: 0 | AA32: 0 | AB32: 0 | AD32: =IF(ISERROR(J32/OFFSET(H$227,$V32,)),0,J32/OFFSET(H$227,$V32,)) -> 1 | AE32: =SUMIF(V$243:V$244,N32,W$243:W$244) -> 1 | AF32: =(J32-OFFSET(H$227,$V30,))/(OFFSET(H$227,$V28,)-OFFSET(H$227,$V30,)) -> 0 | AG32: =M32/OFFSET(N$227,$V30,) -> 1 | AI32: =W32*(AF32*OFFSET(Calculator!O$227,$V28,AE32)+AG32*OFFSET(Calculator!O$227,$V30,AE30)) -> 0 | AJ32: =IF($E32<>"",IF(SUMIF($AC$304:$AC$306,$E32,$AG$304:$AG$306)=1,W32,0),0) -> 0 | AK32: =IF($E32<>"",IF(SUMIF($AC$304:$AC$306,$E32,$AG$304:$AG$306)=2,W32,0),0) -> 0 | AL32: =IF($E32<>"",IF(SUMIF($AC$304:$AC$306,$E32,AG$304:AG$306)=3,W32*OFFSET(Calculator!M$227,V32,0),0),0) -> 0 | AM32: =IF(E32=E$248,W32,IF(E32=E$249,W32*(0.25/0.73),0)) -> 0
E34: Calcium ammonium nitrate | H34: 0 | J34: =OFFSET(H$227,$V34,) -> 0.27 | K34: =OFFSET(K$227,$V34,) -> 0 | L34: =OFFSET(L$227,$V34,) -> 0 | M34: =OFFSET(N$227,$V34,) -> 0 | N34: No | O34: =IF(AD34>1.05,"Please check analysis - nutrient levels are implausibly high","") ->  | V34: 6 | W34: =H34 -> 0 | X34: =J34 -> 0.27 | Y34: 0 | AA34: 0 | AB34: 0 | AD34: =IF(ISERROR(J34/OFFSET(H$227,$V34,)),0,J34/OFFSET(H$227,$V34,)) -> 1 | AE34: =SUMIF(V$243:V$244,N34,W$243:W$244) -> 1 | AI34: =AD34*W34*OFFSET(Calculator!O$227,$V34,AE34) -> 0 | AJ34: =IF($E34<>"",IF(SUMIF($AC$304:$AC$306,$E34,$AG$304:$AG$306)=1,W34,0),0) -> 0 | AK34: =IF($E34<>"",IF(SUMIF($AC$304:$AC$306,$E34,$AG$304:$AG$306)=2,W34,0),0) -> 0 | AL34: =IF($E34<>"",IF(SUMIF($AC$304:$AC$306,$E34,AG$304:AG$306)=3,W34*OFFSET(Calculator!M$227,V34,0),0),0) -> 0 | AM34: =IF(E34=E$248,W34,IF(E34=E$249,W34*(0.25/0.73),0)) -> 0
I35: Choose correct units:
E36: Urea | H36: 0 | I36: kgs/ha product | J36: =OFFSET(H$227,$V36,) -> 0.464 | K36: =OFFSET(K$227,$V36,) -> 0 | L36: =OFFSET(L$227,$V36,) -> 0 | M36: =OFFSET(N$227,$V36,) -> 0 | O36: =IF(AD36>1.05,"Please check analysis - nutrient levels are implausibly high","") ->  | V36: 21 | W36: =H36*OFFSET(V258,1,SUMIF(Z259:Z260,I36,AA259:AA260)) -> 0 | X36: =J36 -> 0.464 | Y36: =X36*W36 -> 0 | AA36: 0 | AB36: =0.01*0.3*Y36 -> 0 | AD36: =IF(ISERROR(J36/OFFSET(H$227,$V36,)),0,J36/OFFSET(H$227,$V36,)) -> 1 | AE36: 1 | AI36: =AD36*W36*OFFSET(Calculator!O$227,$V36,AE36) -> 0 | AJ36: =IF($E36<>"",IF(SUMIF($AC$304:$AC$306,$E36,$AG$304:$AG$306)=1,W36,0),0) -> 0 | AK36: =IF($E36<>"",IF(SUMIF($AC$304:$AC$306,$E36,$AG$304:$AG$306)=2,W36,0),0) -> 0 | AL36: =IF($E36<>"",IF(SUMIF($AC$304:$AC$306,$E36,AG$304:AG$306)=3,W36*OFFSET(Calculator!M$227,V36,0),0),0) -> 0 | AM36: =IF(E36=E$248,W36,IF(E36=E$249,W36*(0.25/0.73),0)) -> 0
E38: Urea ammonium nitrate solution | H38: 0 | I38: kgs/ha product | J38: =OFFSET(H$227,$V38,) -> 0.32 | K38: =OFFSET(K$227,$V38,) -> 0 | L38: =OFFSET(L$227,$V38,) -> 0 | M38: =OFFSET(N$227,$V38,) -> 0 | N38: No | O38: =IF(AD38>1.05,"Please check analysis - nutrient levels are implausibly high","") ->  | V38: 22 | W38: =H38*OFFSET(V258,2,SUMIF(Z259:Z260,I38,AA259:AA260)) -> 0 | X38: =J38 -> 0.32 | Y38: =X38*W38 -> 0 | AA38: 0 | AB38: =0.01*0.3*Y38 -> 0 | AD38: =IF(ISERROR(J38/OFFSET(H$227,$V38,)),0,J38/OFFSET(H$227,$V38,)) -> 1 | AE38: =SUMIF(V$243:V$244,N38,W$243:W$244) -> 1 | AI38: =AD38*W38*OFFSET(Calculator!O$227,$V38,AE38) -> 0 | AJ38: =IF($E38<>"",IF(SUMIF($AC$304:$AC$306,$E38,$AG$304:$AG$306)=1,W38,0),0) -> 0 | AK38: =IF($E38<>"",IF(SUMIF($AC$304:$AC$306,$E38,$AG$304:$AG$306)=2,W38,0),0) -> 0 | AL38: =IF($E38<>"",IF(SUMIF($AC$304:$AC$306,$E38,AG$304:AG$306)=3,W38*OFFSET(Calculator!M$227,V38,0),0),0) -> 0 | AM38: =IF(E38=E$248,W38,IF(E38=E$249,W38*(0.25/0.73),0)) -> 0
E40: Calcium nitrate | H40: 0 | J40: =OFFSET(H$227,$V40,) -> 0.15 | K40: =OFFSET(K$227,$V40,) -> 0 | L40: =OFFSET(L$227,$V40,) -> 0 | M40: =OFFSET(N$227,$V40,) -> 0 | O40: =IF(AD40>1.05,"Please check analysis - nutrient levels are implausibly high","") ->  | V40: 7 | W40: =H40 -> 0 | X40: =J40 -> 0.15 | Y40: 0 | AA40: 0 | AB40: 0 | AD40: =IF(ISERROR(J40/OFFSET(H$227,$V40,)),0,J40/OFFSET(H$227,$V40,)) -> 1 | AE40: 1 | AI40: =AD40*W40*OFFSET(Calculator!O$227,$V40,AE40) -> 0 | AJ40: =IF($E40<>"",IF(SUMIF($AC$304:$AC$306,$E40,$AG$304:$AG$306)=1,W40,0),0) -> 0 | AK40: =IF($E40<>"",IF(SUMIF($AC$304:$AC$306,$E40,$AG$304:$AG$306)=2,W40,0),0) -> 0 | AL40: =IF($E40<>"",IF(SUMIF($AC$304:$AC$306,$E40,AG$304:AG$306)=3,W40*OFFSET(Calculator!M$227,V40,0),0),0) -> 0 | AM40: =IF(E40=E$248,W40,IF(E40=E$249,W40*(0.25/0.73),0)) -> 0
E42: Compound NK | H42: 0 | J42: =OFFSET(H$227,$V42,) -> 0.14 | K42: =OFFSET(K$227,$V42,) -> 0 | L42: =OFFSET(L$227,$V42,) -> 0.44 | M42: =OFFSET(N$227,$V42,) -> 0 | O42: =IF(AD42>1.05,"Please check analysis - nutrient levels are implausibly high","") ->  | V42: 8 | W42: =H42 -> 0 | X42: =J42 -> 0.14 | Y42: 0 | AA42: 0 | AB42: 0 | AD42: =IF(ISERROR(J42/OFFSET(H$227,$V42,)),0,J42/OFFSET(H$227,$V42,)) -> 1 | AE42: 1 | AI42: =AD42*W42*OFFSET(Calculator!O$227,$V42,AE42) -> 0 | AJ42: =IF($E42<>"",IF(SUMIF($AC$304:$AC$306,$E42,$AG$304:$AG$306)=1,W42,0),0) -> 0 | AK42: =IF($E42<>"",IF(SUMIF($AC$304:$AC$306,$E42,$AG$304:$AG$306)=2,W42,0),0) -> 0 | AL42: =IF($E42<>"",IF(SUMIF($AC$304:$AC$306,$E42,AG$304:AG$306)=3,W42*OFFSET(Calculator!M$227,V42,0),0),0) -> 0 | AM42: =IF(E42=E$248,W42,IF(E42=E$249,W42*(0.25/0.73),0)) -> 0
E44: Anhydrous ammonia | H44: 0 | J44: =OFFSET(H$227,$V44,) -> 0.82 | K44: =OFFSET(K$227,$V44,) -> 0 | L44: =OFFSET(L$227,$V44,) -> 0 | M44: =OFFSET(N$227,$V44,) -> 0 | O44: =IF(AD44>1.05,"Please check analysis - nutrient levels are implausibly high","") ->  | V44: 5 | W44: =H44 -> 0 | X44: =J44 -> 0.82 | Y44: =X44*W44 -> 0 | AA44: 0 | AB44: =0.01*0.3*Y44 -> 0 | AD44: =IF(ISERROR(J44/OFFSET(H$227,$V44,)),0,J44/OFFSET(H$227,$V44,)) -> 1 | AE44: 1 | AI44: =AD44*W44*OFFSET(Calculator!O$227,$V44,AE44) -> 0 | AJ44: =IF($E44<>"",IF(SUMIF($AC$304:$AC$306,$E44,$AG$304:$AG$306)=1,W44,0),0) -> 0 | AK44: =IF($E44<>"",IF(SUMIF($AC$304:$AC$306,$E44,$AG$304:$AG$306)=2,W44,0),0) -> 0 | AL44: =IF($E44<>"",IF(SUMIF($AC$304:$AC$306,$E44,AG$304:AG$306)=3,W44*OFFSET(Calculator!M$227,V44,0),0),0) -> 0 | AM44: =IF(E44=E$248,W44,IF(E44=E$249,W44*(0.25/0.73),0)) -> 0
E49: Diammonium phosphate | H49: 0 | J49: =OFFSET(H$227,$V49,) -> 0.18 | K49: =OFFSET(K$227,$V49,) -> 0.46 | L49: =OFFSET(L$227,$V49,) -> 0 | M49: =OFFSET(N$227,$V49,) -> 0 | O49: =IF(AD49>1.05,"Please check analysis - nutrient levels are implausibly high","") ->  | V49: 10 | W49: =H49 -> 0 | X49: =J49 -> 0.18 | Y49: =X49*W49 -> 0 | AA49: =0.01*Y49 -> 0 | AB49: =0.01*0.3*Y49 -> 0 | AD49: =IF(ISERROR(K49/OFFSET(K$227,$V49,)),0,K49/OFFSET(K$227,$V49,)) -> 1 | AE49: 1 | AI49: =AD49*W49*OFFSET(Calculator!O$227,$V49,AE49) -> 0 | AJ49: =IF($E49<>"",IF(SUMIF($AC$304:$AC$306,$E49,$AG$304:$AG$306)=1,W49,0),0) -> 0 | AK49: =IF($E49<>"",IF(SUMIF($AC$304:$AC$306,$E49,$AG$304:$AG$306)=2,W49,0),0) -> 0 | AL49: =IF($E49<>"",IF(SUMIF($AC$304:$AC$306,$E49,AG$304:AG$306)=3,W49*OFFSET(Calculator!M$227,V49,0),0),0) -> 0 | AM49: =IF(E49=E$248,W49,IF(E49=E$249,W49*(0.25/0.73),0)) -> 0
B51: N, P, and K fertilisers | E51: Monoammonium phosphate | H51: 0 | J51: =OFFSET(H$227,$V51,) -> 0.11 | K51: =OFFSET(K$227,$V51,) -> 0.52 | L51: =OFFSET(L$227,$V51,) -> 0 | M51: =OFFSET(N$227,$V51,) -> 0 | O51: =IF(AD51>1.05,"Please check analysis - nutrient levels are implausibly high","") ->  | V51: 15 | W51: =H51 -> 0 | X51: 0.11 | Y51: =X51*W51 -> 0 | AA51: =0.01*Y51 -> 0 | AB51: =0.01*0.3*Y51 -> 0 | AD51: =IF(ISERROR(K51/OFFSET(K$227,$V51,)),0,K51/OFFSET(K$227,$V51,)) -> 1 | AE51: 1 | AI51: =AD51*W51*OFFSET(Calculator!O$227,$V51,AE51) -> 0 | AJ51: =IF($E51<>"",IF(SUMIF($AC$304:$AC$306,$E51,$AG$304:$AG$306)=1,W51,0),0) -> 0 | AK51: =IF($E51<>"",IF(SUMIF($AC$304:$AC$306,$E51,$AG$304:$AG$306)=2,W51,0),0) -> 0 | AL51: =IF($E51<>"",IF(SUMIF($AC$304:$AC$306,$E51,AG$304:AG$306)=3,W51*OFFSET(Calculator!M$227,V51,0),0),0) -> 0 | AM51: =IF(E51=E$248,W51,IF(E51=E$249,W51*(0.25/0.73),0)) -> 0
E53: Phosphate/Rock Phosphate | H53: 0 | J53: =OFFSET(H$227,$V53,) -> 0 | K53: =OFFSET(K$227,$V53,) -> 0.25 | L53: =OFFSET(L$227,$V53,) -> 0 | M53: =OFFSET(N$227,$V53,) -> 0 | O53: =IF(AD53>1.05,"Please check analysis - nutrient levels are implausibly high","") ->  | V53: 17 | W53: =H53 -> 0 | X53: 0 | Y53: =X53*W53 -> 0 | AA53: 0 | AB53: =0.01*0.3*Y53 -> 0 | AD53: =IF(ISERROR(K53/OFFSET(K$227,$V53,)),0,K53/OFFSET(K$227,$V53,)) -> 1 | AE53: 1 | AI53: =AD53*W53*OFFSET(Calculator!O$227,$V53,AE53) -> 0 | AJ53: =IF($E53<>"",IF(SUMIF($AC$304:$AC$306,$E53,$AG$304:$AG$306)=1,W53,0),0) -> 0 | AK53: =IF($E53<>"",IF(SUMIF($AC$304:$AC$306,$E53,$AG$304:$AG$306)=2,W53,0),0) -> 0 | AL53: =IF($E53<>"",IF(SUMIF($AC$304:$AC$306,$E53,AG$304:AG$306)=3,W53*OFFSET(Calculator!M$227,V53,0),0),0) -> 0 | AM53: =IF(E53=E$248,W53,IF(E53=E$249,W53*(0.25/0.73),0)) -> 0
E55: Super phosphate | H55: 0 | J55: =OFFSET(H$227,$V55,) -> 0 | K55: =OFFSET(K$227,$V55,) -> 0.21 | L55: =OFFSET(L$227,$V55,) -> 0 | M55: =OFFSET(N$227,$V55,) -> 0 | O55: =IF(AD55>1.05,"Please check analysis - nutrient levels are implausibly high","") ->  | V55: 19 | W55: =H55 -> 0 | X55: 0 | Y55: =X55*W55 -> 0 | AA55: 0 | AB55: =0.01*0.3*Y55 -> 0 | AD55: =IF(ISERROR(K55/OFFSET(K$227,$V55,)),0,K55/OFFSET(K$227,$V55,)) -> 1 | AE55: 1 | AI55: =AD55*W55*OFFSET(Calculator!O$227,$V55,AE55) -> 0 | AJ55: =IF($E55<>"",IF(SUMIF($AC$304:$AC$306,$E55,$AG$304:$AG$306)=1,W55,0),0) -> 0 | AK55: =IF($E55<>"",IF(SUMIF($AC$304:$AC$306,$E55,$AG$304:$AG$306)=2,W55,0),0) -> 0 | AL55: =IF($E55<>"",IF(SUMIF($AC$304:$AC$306,$E55,AG$304:AG$306)=3,W55*OFFSET(Calculator!M$227,V55,0),0),0) -> 0 | AM55: =IF(E55=E$248,W55,IF(E55=E$249,W55*(0.25/0.73),0)) -> 0
E57: Triple super phosphate | H57: 0 | J57: =OFFSET(H$227,$V57,) -> 0 | K57: =OFFSET(K$227,$V57,) -> 0.48 | L57: =OFFSET(L$227,$V57,) -> 0 | M57: =OFFSET(N$227,$V57,) -> 0 | O57: =IF(AD57>1.05,"Please check analysis - nutrient levels are implausibly high","") ->  | V57: 20 | W57: =H57 -> 0 | X57: 0 | Y57: =X57*W57 -> 0 | AA57: 0 | AB57: =0.01*0.3*Y57 -> 0 | AD57: =IF(ISERROR(K57/OFFSET(K$227,$V57,)),0,K57/OFFSET(K$227,$V57,)) -> 1 | AE57: 1 | AI57: =AD57*W57*OFFSET(Calculator!O$227,$V57,AE57) -> 0 | AJ57: =IF($E57<>"",IF(SUMIF($AC$304:$AC$306,$E57,$AG$304:$AG$306)=1,W57,0),0) -> 0 | AK57: =IF($E57<>"",IF(SUMIF($AC$304:$AC$306,$E57,$AG$304:$AG$306)=2,W57,0),0) -> 0 | AL57: =IF($E57<>"",IF(SUMIF($AC$304:$AC$306,$E57,AG$304:AG$306)=3,W57*OFFSET(Calculator!M$227,V57,0),0),0) -> 0 | AM57: =IF(E57=E$248,W57,IF(E57=E$249,W57*(0.25/0.73),0)) -> 0
E59: Muriate of potash | H59: 0 | J59: =OFFSET(H$227,$V59,) -> 0 | K59: =OFFSET(K$227,$V59,) -> 0 | L59: =OFFSET(L$227,$V59,) -> 0.6 | M59: =OFFSET(N$227,$V59,) -> 0 | O59: =IF(AD59>1.05,"Please check analysis - nutrient levels are implausibly high","") ->  | V59: 16 | W59: =H59 -> 0 | X59: 0 | Y59: =X59*W59 -> 0 | AA59: 0 | AB59: =0.01*0.3*Y59 -> 0 | AD59: =IF(ISERROR(L59/OFFSET(L$227,$V59,)),0,L59/OFFSET(L$227,$V59,)) -> 1 | AE59: 1 | AI59: =AD59*W59*OFFSET(Calculator!O$227,$V59,AE59) -> 0 | AJ59: =IF($E59<>"",IF(SUMIF($AC$304:$AC$306,$E59,$AG$304:$AG$306)=1,W59,0),0) -> 0 | AK59: =IF($E59<>"",IF(SUMIF($AC$304:$AC$306,$E59,$AG$304:$AG$306)=2,W59,0),0) -> 0 | AL59: =IF($E59<>"",IF(SUMIF($AC$304:$AC$306,$E59,AG$304:AG$306)=3,W59*OFFSET(Calculator!M$227,V59,0),0),0) -> 0 | AM59: =IF(E59=E$248,W59,IF(E59=E$249,W59*(0.25/0.73),0)) -> 0
E61: Potassium sulphate | H61: 0 | J61: =OFFSET(H$227,$V61,) -> 0 | K61: =OFFSET(K$227,$V61,) -> 0 | L61: =OFFSET(L$227,$V61,) -> 0.5 | M61: =OFFSET(N$227,$V61,) -> 0.45 | O61: =IF(AD61>1.05,"Please check analysis - nutrient levels are implausibly high","") ->  | V61: 18 | W61: =H61 -> 0 | X61: 0 | Y61: =X61*W61 -> 0 | AA61: 0 | AB61: =0.01*0.3*Y61 -> 0 | AD61: =IF(ISERROR(L61/OFFSET(L$227,$V61,)),0,L61/OFFSET(L$227,$V61,)) -> 1 | AE61: 1 | AI61: =AD61*W61*OFFSET(Calculator!O$227,$V61,AE61) -> 0 | AJ61: =IF($E61<>"",IF(SUMIF($AC$304:$AC$306,$E61,$AG$304:$AG$306)=1,W61,0),0) -> 0 | AK61: =IF($E61<>"",IF(SUMIF($AC$304:$AC$306,$E61,$AG$304:$AG$306)=2,W61,0),0) -> 0 | AL61: =IF($E61<>"",IF(SUMIF($AC$304:$AC$306,$E61,AG$304:AG$306)=3,W61*OFFSET(Calculator!M$227,V61,0),0),0) -> 0 | AM61: =IF(E61=E$248,W61,IF(E61=E$249,W61*(0.25/0.73),0)) -> 0
J62: %N | K62: % P2O5 | L62: % K2O | M62: % SO3 | N62: Abated Yes/No? | AA62: N2O emitted | AB62: Leached (as N2O) | AE62: fertiliser tech | AF62: %AN | AG62: %TSP | AH62: %MOP
E63: NPK (or PK) Mix 1 | H63: 0 | J63: =OFFSET(H$227,$V63,) -> 0.15 | K63: =OFFSET(K$227,$V63,) -> 0.15 | L63: =OFFSET(L$227,$V63,) -> 0.15 | M63: =OFFSET(N$227,$V63,) -> 0 | N63: No | O63: =IF(SUM(AF63:AH63)>1.05,"Please check analysis - nutrient levels are implausibly high","") ->  | V63: 9 | W63: =H63 -> 0 | X63: =J63 -> 0.15 | Y63: =X63*W63 -> 0 | AA63: =0.01*Y63 -> 0 | AB63: =0.01*0.3*Y63 -> 0 | AD63: =IF(ISERROR(J63/OFFSET(H$227,$V63,)),0,J63/OFFSET(H$227,$V63,)) -> 1 | AE63: =SUMIF(V$243:V$244,N63,W$243:W$244) -> 1 | AF63: =(J63/OFFSET(H$227,$V$28,)) -> 0.4411764706 | AG63: =(K63/OFFSET(K$227,$V$57,)) -> 0.3125 | AH63: =(L63/OFFSET(L$227,$V$59,)) -> 0.25 | AI63: =W63*(AF63*OFFSET(Calculator!O$227,$V$28,AE63)+AG63*OFFSET(Calculator!O$227,$V$57,AE63)+AH63*OFFSET(Calculator!O$227,$V$59,AE63)) -> 0 | AJ63: =IF($E63<>"",IF(SUMIF($AC$304:$AC$306,$E63,$AG$304:$AG$306)=1,W63,0),0) -> 0 | AK63: =IF($E63<>"",IF(SUMIF($AC$304:$AC$306,$E63,$AG$304:$AG$306)=2,W63,0),0) -> 0 | AL63: =IF($E63<>"",IF(SUMIF($AC$304:$AC$306,$E63,AG$304:AG$306)=3,W63*OFFSET(Calculator!M$227,V63,0),0),0) -> 0 | AM63: =IF(E63=E$248,W63,IF(E63=E$249,W63*(0.25/0.73),0)) -> 0
E65: NPK (or PK) Mix 2 | H65: 0 | J65: =OFFSET(H$227,$V65,) -> 0.15 | K65: =OFFSET(K$227,$V65,) -> 0.15 | L65: =OFFSET(L$227,$V65,) -> 0.15 | M65: =OFFSET(N$227,$V65,) -> 0 | N65: No | O65: =IF(SUM(AF65:AH65)>1.05,"Please check analysis - nutrient levels are implausibly high","") ->  | V65: 9 | W65: =H65 -> 0 | X65: =J65 -> 0.15 | Y65: =X65*W65 -> 0 | AA65: =0.01*Y65 -> 0 | AB65: =0.01*0.3*Y65 -> 0 | AD65: =IF(ISERROR(J65/OFFSET(H$227,$V65,)),0,J65/OFFSET(H$227,$V65,)) -> 1 | AE65: =SUMIF(V$243:V$244,N65,W$243:W$244) -> 1 | AF65: =(J65/OFFSET(H$227,$V$28,)) -> 0.4411764706 | AG65: =(K65/OFFSET(K$227,$V$57,)) -> 0.3125 | AH65: =(L65/OFFSET(L$227,$V$59,)) -> 0.25 | AI65: =W65*(AF65*OFFSET(Calculator!O$227,$V$28,AE65)+AG65*OFFSET(Calculator!O$227,$V$57,AE65)+AH65*OFFSET(Calculator!O$227,$V$59,AE65)) -> 0 | AJ65: =IF($E65<>"",IF(SUMIF($AC$304:$AC$306,$E65,$AG$304:$AG$306)=1,W65,0),0) -> 0 | AK65: =IF($E65<>"",IF(SUMIF($AC$304:$AC$306,$E65,$AG$304:$AG$306)=2,W65,0),0) -> 0 | AL65: =IF($E65<>"",IF(SUMIF($AC$304:$AC$306,$E65,AG$304:AG$306)=3,W65*OFFSET(Calculator!M$227,V65,0),0),0) -> 0 | AM65: =IF(E65=E$248,W65,IF(E65=E$249,W65*(0.25/0.73),0)) -> 0
E67: NPK (or PK) Mix 3 | H67: 0 | J67: =OFFSET(H$227,$V67,) -> 0.15 | K67: =OFFSET(K$227,$V67,) -> 0.15 | L67: =OFFSET(L$227,$V67,) -> 0.15 | M67: =OFFSET(N$227,$V67,) -> 0 | N67: No | O67: =IF(SUM(AF67:AH67)>1.05,"Please check analysis - nutrient levels are implausibly high","") ->  | V67: 9 | W67: =H67 -> 0 | X67: =J67 -> 0.15 | Y67: =X67*W67 -> 0 | AA67: =0.01*Y67 -> 0 | AB67: =0.01*0.3*Y67 -> 0 | AD67: =IF(ISERROR(J67/OFFSET(H$227,$V67,)),0,J67/OFFSET(H$227,$V67,)) -> 1 | AE67: =SUMIF(V$243:V$244,N67,W$243:W$244) -> 1 | AF67: =(J67/OFFSET(H$227,$V$28,)) -> 0.4411764706 | AG67: =(K67/OFFSET(K$227,$V$57,)) -> 0.3125 | AH67: =(L67/OFFSET(L$227,$V$59,)) -> 0.25 | AI67: =W67*(AF67*OFFSET(Calculator!O$227,$V$28,AE67)+AG67*OFFSET(Calculator!O$227,$V$57,AE67)+AH67*OFFSET(Calculator!O$227,$V$59,AE67)) -> 0 | AJ67: =IF($E67<>"",IF(SUMIF($AC$304:$AC$306,$E67,$AG$304:$AG$306)=1,W67,0),0) -> 0 | AK67: =IF($E67<>"",IF(SUMIF($AC$304:$AC$306,$E67,$AG$304:$AG$306)=2,W67,0),0) -> 0 | AL67: =IF($E67<>"",IF(SUMIF($AC$304:$AC$306,$E67,AG$304:AG$306)=3,W67*OFFSET(Calculator!M$227,V67,0),0),0) -> 0 | AM67: =IF(E67=E$248,W67,IF(E67=E$249,W67*(0.25/0.73),0)) -> 0
E69: NPK (or PK) Mix 4 | H69: 0 | J69: =OFFSET(H$227,$V69,) -> 0.15 | K69: =OFFSET(K$227,$V69,) -> 0.15 | L69: =OFFSET(L$227,$V69,) -> 0.15 | M69: =OFFSET(N$227,$V69,) -> 0 | N69: No | O69: =IF(SUM(AF69:AH69)>1.05,"Please check analysis - nutrient levels are implausibly high","") ->  | V69: 9 | W69: =H69 -> 0 | X69: =J69 -> 0.15 | Y69: =X69*W69 -> 0 | AA69: =0.01*Y69 -> 0 | AB69: =0.01*0.3*Y69 -> 0 | AD69: =IF(ISERROR(J69/OFFSET(H$227,$V69,)),0,J69/OFFSET(H$227,$V69,)) -> 1 | AE69: =SUMIF(V$243:V$244,N69,W$243:W$244) -> 1 | AF69: =(J69/OFFSET(H$227,$V$28,)) -> 0.4411764706 | AG69: =(K69/OFFSET(K$227,$V$57,)) -> 0.3125 | AH69: =(L69/OFFSET(L$227,$V$59,)) -> 0.25 | AI69: =W69*(AF69*OFFSET(Calculator!O$227,$V$28,AE69)+AG69*OFFSET(Calculator!O$227,$V$57,AE69)+AH69*OFFSET(Calculator!O$227,$V$59,AE69)) -> 0 | AJ69: =IF($E69<>"",IF(SUMIF($AC$304:$AC$306,$E69,$AG$304:$AG$306)=1,W69,0),0) -> 0 | AK69: =IF($E69<>"",IF(SUMIF($AC$304:$AC$306,$E69,$AG$304:$AG$306)=2,W69,0),0) -> 0 | AL69: =IF($E69<>"",IF(SUMIF($AC$304:$AC$306,$E69,AG$304:AG$306)=3,W69*OFFSET(Calculator!M$227,V69,0),0),0) -> 0 | AM69: =IF(E69=E$248,W69,IF(E69=E$249,W69*(0.25/0.73),0)) -> 0
E71: Lime | H71: 0 | V71: 12 | W71: =H71 -> 0 | X71: 0 | Y71: 0 | AA71: =0.01*Y71 -> 0 | AB71: 0 | AD71: 1 | AE71: 1 | AI71: =AD71*W71*OFFSET(Calculator!O$227,$V71,AE71) -> 0 | AJ71: =IF($E71<>"",IF(SUMIF($AC$304:$AC$306,$E71,$AG$304:$AG$306)=1,W71,0),0) -> 0 | AK71: =IF($E71<>"",IF(SUMIF($AC$304:$AC$306,$E71,$AG$304:$AG$306)=2,W71,0),0) -> 0 | AL71: =IF($E71<>"",IF(SUMIF($AC$304:$AC$306,$E71,AG$304:AG$306)=3,W71*OFFSET(Calculator!M$227,V71,0),0),0) -> 0 | AM71: =IF(E71=E$248,W71,IF(E71=E$249,W71*(0.25/0.73),0)) -> 0
E73: Limestone | H73: 0 | V73: 13 | W73: =H73 -> 0 | X73: 0 | Y73: 0 | AA73: =0.01*Y73 -> 0 | AB73: 0 | AD73: 1 | AE73: 1 | AI73: =AD73*W73*OFFSET(Calculator!O$227,$V73,AE73) -> 0 | AJ73: =IF($E73<>"",IF(SUMIF($AC$304:$AC$306,$E73,$AG$304:$AG$306)=1,W73,0),0) -> 0 | AK73: =IF($E73<>"",IF(SUMIF($AC$304:$AC$306,$E73,$AG$304:$AG$306)=2,W73,0),0) -> 0 | AL73: =W73 -> 0 | AM73: =IF(E73=E$248,W73,IF(E73=E$249,W73*(0.25/0.73),0)) -> 0
I76: Percentage of this crop to which this is applied | J76: % N (readily available) | K76: %P2O5 | L76: %K2O | Y76: This is RAN for organic fertilisers
E77: =E250 -> Compost | H77: 0 | I77: 100 | J77: =OFFSET(O$227,$V77,) -> 0.0002 | K77: =OFFSET(K$227,$V77,) -> 0.003 | L77: =OFFSET(L$227,$V77,) -> 0.0055 | V77: 23 | W77: =H77*I77/100*1000 -> 0 | X77: =IF(E77<>"",OFFSET(Calculator!O$227,V77,0),0) -> 0.0002 | Y77: =X77*W77 -> 0 | AA77: =0.01*Y77 -> 0 | AB77: =0.01*0.3*Y77 -> 0 | AD77: =IF(ISERROR(J77/OFFSET(H$227,$V77,)),0,J77/OFFSET(H$227,$V77,)) -> 0.02666666667 | AE77: 1 | AI77: =W77*OFFSET(Calculator!O$227,$V77,AE77) -> 0 | AJ77: =W77 -> 0 | AK77: =IF($E77<>"",IF(SUMIF($AC$304:$AC$306,$E77,$AG$304:$AG$306)=2,W77,0),0) -> 0 | AL77: =IF($E77<>"",IF(SUMIF($AC$304:$AC$306,$E77,AG$304:AG$306)=3,W77*OFFSET(Calculator!M$227,V77,0),0),0) -> 0 | AM77: =IF(E77=E$248,W77,IF(E77=E$249,W77*(0.25/0.73),0)) -> 0
E79: Cattle farmyard manure | H79: 0 | I79: 100 | J79: =OFFSET(O$227,$V79,) -> 0.0012 | K79: =OFFSET(K$227,$V79,) -> 0.0032 | L79: =OFFSET(L$227,$V79,) -> 0.008 | V79: 26 | W79: =H79*I79/100*1000 -> 0 | X79: =IF(E79<>"",OFFSET(Calculator!O$227,V79,0),0) -> 0.0012 | Y79: 0 | AA79: 0 | AB79: 0 | AD79: 1 | AE79: 1 | AI79: =W79*OFFSET(Calculator!O$227,$V79,AE79) -> 0 | AJ79: 0 | AK79: =W79 -> 0 | AL79: =IF($E79<>"",IF(SUMIF($AC$304:$AC$306,$E79,AG$304:AG$306)=3,W79*OFFSET(Calculator!M$227,V79,0),0),0) -> 0 | AM79: =IF(E79=E$248,W79,IF(E79=E$249,W79*(0.25/0.73),0)) -> 0
E81: Pig farmyard manure | H81: 0 | I81: 100 | J81: =OFFSET(O$227,$V81,) -> 0.0018 | K81: =OFFSET(K$227,$V81,) -> 0.006 | L81: =OFFSET(L$227,$V81,) -> 0.008 | V81: 27 | W81: 0 | X81: =IF(E81<>"",OFFSET(Calculator!O$227,V81,0),0) -> 0.0018 | Y81: 0 | AA81: 0 | AB81: 0 | AD81: 1 | AE81: 1 | AI81: =W81*OFFSET(Calculator!O$227,$V81,AE81) -> 0 | AJ81: 0 | AK81: 0 | AL81: =IF($E81<>"",IF(SUMIF($AC$304:$AC$306,$E81,AG$304:AG$306)=3,W81*OFFSET(Calculator!M$227,V81,0),0),0) -> 0 | AM81: =IF(E81=E$248,W81,IF(E81=E$249,W81*(0.25/0.73),0)) -> 0
E83: Sheep farmyard manure | H83: 0 | I83: 100 | J83: =OFFSET(O$227,$V83,) -> 0.0014 | K83: =OFFSET(K$227,$V83,) -> 0.0032 | L83: =OFFSET(L$227,$V83,) -> 0.008 | V83: 28 | W83: 0 | X83: =IF(E83<>"",OFFSET(Calculator!O$227,V83,0),0) -> 0.0014 | Y83: 0 | AA83: 0 | AB83: 0 | AD83: 1 | AE83: 1 | AI83: =W83*OFFSET(Calculator!O$227,$V83,AE83) -> 0 | AJ83: 0 | AK83: 0 | AL83: =IF($E83<>"",IF(SUMIF($AC$304:$AC$306,$E83,AG$304:AG$306)=3,W83*OFFSET(Calculator!M$227,V83,0),0),0) -> 0 | AM83: =IF(E83=E$248,W83,IF(E83=E$249,W83*(0.25/0.73),0)) -> 0
B85: Composts and manures | E85: Horse farmyard manure | H85: 0 | I85: 100 | J85: =OFFSET(O$227,$V85,) -> 0.0016 | K85: =OFFSET(K$227,$V85,) -> 0.005 | L85: =OFFSET(L$227,$V85,) -> 0.006 | V85: 29 | W85: 0 | X85: =IF(E85<>"",OFFSET(Calculator!O$227,V85,0),0) -> 0.0016 | Y85: 0 | AA85: 0 | AB85: 0 | AD85: 1 | AE85: 1 | AI85: =W85*OFFSET(Calculator!O$227,$V85,AE85) -> 0 | AJ85: 0 | AK85: 0 | AL85: =IF($E85<>"",IF(SUMIF($AC$304:$AC$306,$E85,AG$304:AG$306)=3,W85*OFFSET(Calculator!M$227,V85,0),0),0) -> 0 | AM85: =IF(E85=E$248,W85,IF(E85=E$249,W85*(0.25/0.73),0)) -> 0
E87: Poultry layer manure | H87: 0 | I87: 100 | J87: =OFFSET(O$227,$V87,) -> 0.0095 | K87: =OFFSET(K$227,$V87,) -> 0.014 | L87: =OFFSET(L$227,$V87,) -> 0.0095 | V87: 30 | W87: 0 | X87: =IF(E87<>"",OFFSET(Calculator!O$227,V87,0),0) -> 0.0095 | Y87: 0 | AA87: 0 | AB87: 0 | AD87: 1 | AE87: 1 | AI87: =W87*OFFSET(Calculator!O$227,$V87,AE87) -> 0 | AJ87: 0 | AK87: 0 | AL87: =IF($E87<>"",IF(SUMIF($AC$304:$AC$306,$E87,AG$304:AG$306)=3,W87*OFFSET(Calculator!M$227,V87,0),0),0) -> 0 | AM87: =IF(E87=E$248,W87,IF(E87=E$249,W87*(0.25/0.73),0)) -> 0
E89: Broiler/Turkey litter | H89: 0 | I89: 100 | J89: =OFFSET(O$227,$V89,) -> 0.0105 | K89: =OFFSET(K$227,$V89,) -> 0.025 | L89: =OFFSET(L$227,$V89,) -> 0.018 | V89: 31 | W89: 0 | X89: =IF(E89<>"",OFFSET(Calculator!O$227,V89,0),0) -> 0.0105 | Y89: 0 | AA89: 0 | AB89: 0 | AD89: 1 | AE89: 1 | AI89: =W89*OFFSET(Calculator!O$227,$V89,AE89) -> 0 | AJ89: 0 | AK89: 0 | AL89: =IF($E89<>"",IF(SUMIF($AC$304:$AC$306,$E89,AG$304:AG$306)=3,W89*OFFSET(Calculator!M$227,V89,0),0),0) -> 0 | AM89: =IF(E89=E$248,W89,IF(E89=E$249,W89*(0.25/0.73),0)) -> 0
E91: Cattle slurry | H91: 0 | I91: 100 | J91: =OFFSET(O$227,$V91,) -> 0.0012 | K91: =OFFSET(K$227,$V91,) -> 0.0012 | L91: =OFFSET(L$227,$V91,) -> 0.0032 | V91: 32 | W91: 0 | X91: =IF(E91<>"",OFFSET(Calculator!O$227,V91,0),0) -> 0.0012 | Y91: 0 | AA91: 0 | AB91: 0 | AD91: 1 | AE91: 1 | AI91: =W91*OFFSET(Calculator!O$227,$V91,AE91) -> 0 | AJ91: 0 | AK91: 0 | AL91: =IF($E91<>"",IF(SUMIF($AC$304:$AC$306,$E91,AG$304:AG$306)=3,W91*OFFSET(Calculator!M$227,V91,0),0),0) -> 0 | AM91: =IF(E91=E$248,W91,IF(E91=E$249,W91*(0.25/0.73),0)) -> 0
E93: Pig slurry | H93: 0 | I93: 100 | J93: =OFFSET(O$227,$V93,) -> 0.0025 | K93: =OFFSET(K$227,$V93,) -> 0.0018 | L93: =OFFSET(L$227,$V93,) -> 0.0024 | V93: 33 | W93: 0 | X93: =IF(E93<>"",OFFSET(Calculator!O$227,V93,0),0) -> 0.0025 | Y93: 0 | AA93: 0 | AB93: 0 | AD93: 1 | AE93: 1 | AI93: =W93*OFFSET(Calculator!O$227,$V93,AE93) -> 0 | AJ93: 0 | AK93: 0 | AL93: =IF($E93<>"",IF(SUMIF($AC$304:$AC$306,$E93,AG$304:AG$306)=3,W93*OFFSET(Calculator!M$227,V93,0),0),0) -> 0 | AM93: =IF(E93=E$248,W93,IF(E93=E$249,W93*(0.25/0.73),0)) -> 0
E95: Separated Pig slurry - liquid part | H95: 0 | I95: 100 | J95: =OFFSET(O$227,$V95,) -> 0.0022 | K95: =OFFSET(K$227,$V95,) -> 0.0016 | L95: =OFFSET(L$227,$V95,) -> 0.0024 | V95: 34 | W95: 0 | X95: =IF(E95<>"",OFFSET(Calculator!O$227,V95,0),0) -> 0.0022 | Y95: 0 | AA95: 0 | AB95: 0 | AD95: 1 | AE95: 1 | AI95: =W95*OFFSET(Calculator!O$227,$V95,AE95) -> 0 | AJ95: 0 | AK95: 0 | AL95: =IF($E95<>"",IF(SUMIF($AC$304:$AC$306,$E95,AG$304:AG$306)=3,W95*OFFSET(Calculator!M$227,V95,0),0),0) -> 0 | AM95: =IF(E95=E$248,W95,IF(E95=E$249,W95*(0.25/0.73),0)) -> 0
E97: Separated Pig slurry - solid part | H97: 0 | I97: 100 | J97: =OFFSET(O$227,$V97,) -> 0.0013 | K97: =OFFSET(K$227,$V97,) -> 0.0046 | L97: =OFFSET(L$227,$V97,) -> 0.0022 | V97: 35 | W97: 0 | X97: =IF(E97<>"",OFFSET(Calculator!O$227,V97,0),0) -> 0.0013 | Y97: 0 | AA97: 0 | AB97: 0 | AD97: 1 | AE97: 1 | AI97: =W97*OFFSET(Calculator!O$227,$V97,AE97) -> 0 | AJ97: 0 | AK97: 0 | AL97: =IF($E97<>"",IF(SUMIF($AC$304:$AC$306,$E97,AG$304:AG$306)=3,W97*OFFSET(Calculator!M$227,V97,0),0),0) -> 0 | AM97: =IF(E97=E$248,W97,IF(E97=E$249,W97*(0.25/0.73),0)) -> 0
AD98: 1 | AE98: 1 | AI98: =W98*OFFSET(Calculator!O$227,$V98,AE98) -> 0 | AJ98: 0 | AK98: 0
B99: Biosolids | E99: =E264 -> Digested liquid | H99: 0 | I99: 100 | J99: =OFFSET(O$227,$V99,) -> 0.0008 | K99: =OFFSET(K$227,$V99,) -> 0.003 | L99: =OFFSET(L$227,$V99,) -> 0.001 | V99: 37 | W99: 0 | X99: =IF(E99<>"",OFFSET(Calculator!O$227,V99,0),0) -> 0.0008 | Y99: =X99*W99 -> 0 | AA99: 0 | AB99: =0.01*0.3*Y99 -> 0 | AD99: 1 | AE99: 1 | AI99: =W99*OFFSET(Calculator!O$227,$V99,AE99) -> 0 | AJ99: 0 | AK99: 0 | AL99: =IF($E99<>"",IF(SUMIF($AC$304:$AC$306,$E99,AG$304:AG$306)=3,W99*OFFSET(Calculator!M$227,V99,0),0),0) -> 0 | AM99: =IF(E99=E$248,W99,IF(E99=E$249,W99*(0.25/0.73),0)) -> 0
E101: =E265 -> Digested cake | H101: 0 | I101: 100 | J101: =OFFSET(O$227,$V101,) -> 0.0016 | K101: =OFFSET(K$227,$V101,) -> 0.0018 | L101: =OFFSET(L$227,$V101,) -> 0.0006 | V101: 38 | W101: 0 | X101: =IF(E101<>"",OFFSET(Calculator!O$227,V101,0),0) -> 0.0016 | Y101: =X101*W101 -> 0 | AA101: 0 | AB101: =0.01*0.3*Y101 -> 0 | AD101: 1 | AE101: 1 | AI101: =W101*OFFSET(Calculator!O$227,$V101,AE101) -> 0 | AJ101: 0 | AK101: 0 | AL101: =IF($E101<>"",IF(SUMIF($AC$304:$AC$306,$E101,AG$304:AG$306)=3,W101*OFFSET(Calculator!M$227,V101,0),0),0) -> 0 | AM101: =IF(E101=E$248,W101,IF(E101=E$249,W101*(0.25/0.73),0)) -> 0
E103: =E266 -> Thermally dried | H103: 0 | I103: 100 | J103: =OFFSET(O$227,$V103,) -> 0.002 | K103: =OFFSET(K$227,$V103,) -> 0.07 | L103: =OFFSET(L$227,$V103,) -> 0.002 | V103: 39 | W103: 0 | X103: =IF(E103<>"",OFFSET(Calculator!O$227,V103,0),0) -> 0.002 | Y103: =X103*W103 -> 0 | AA103: 0 | AB103: =0.01*0.3*Y103 -> 0 | AD103: 1 | AE103: 1 | AI103: =W103*OFFSET(Calculator!O$227,$V103,AE103) -> 0 | AJ103: 0 | AK103: 0 | AL103: =IF($E103<>"",IF(SUMIF($AC$304:$AC$306,$E103,AG$304:AG$306)=3,W103*OFFSET(Calculator!M$227,V103,0),0),0) -> 0 | AM103: =IF(E103=E$248,W103,IF(E103=E$249,W103*(0.25/0.73),0)) -> 0
E105: =E267 -> Lime stabilised | H105: 0 | I105: 100 | J105: =OFFSET(O$227,$V105,) -> 0.0009 | K105: =OFFSET(K$227,$V105,) -> 0.026 | L105: =OFFSET(L$227,$V105,) -> 0.0008 | V105: 40 | W105: 0 | X105: =IF(E105<>"",OFFSET(Calculator!O$227,V105,0),0) -> 0.0009 | Y105: =X105*W105 -> 0 | AA105: 0 | AB105: =0.01*0.3*Y105 -> 0 | AD105: 1 | AE105: 1 | AI105: =W105*OFFSET(Calculator!O$227,$V105,AE105) -> 0 | AJ105: 0 | AK105: 0 | AL105: =IF($E105<>"",IF(SUMIF($AC$304:$AC$306,$E105,AG$304:AG$306)=3,W105*OFFSET(Calculator!M$227,V105,0),0),0) -> 0 | AM105: =IF(E105=E$248,W105,IF(E105=E$249,W105*(0.25/0.73),0)) -> 0
E107: =E268 -> Composted | H107: 0 | I107: 100 | J107: =OFFSET(O$227,$V107,) -> 0.0006 | K107: =OFFSET(K$227,$V107,) -> 0.006 | L107: =OFFSET(L$227,$V107,) -> 0.003 | V107: 41 | W107: 0 | X107: =IF(E107<>"",OFFSET(Calculator!O$227,V107,0),0) -> 0.0006 | Y107: =X107*W107 -> 0 | AA107: 0 | AB107: =0.01*0.3*Y107 -> 0 | AD107: 1 | AE107: 1 | AI107: =W107*OFFSET(Calculator!O$227,$V107,AE107) -> 0 | AJ107: 0 | AK107: 0 | AL107: =IF($E107<>"",IF(SUMIF($AC$304:$AC$306,$E107,AG$304:AG$306)=3,W107*OFFSET(Calculator!M$227,V107,0),0),0) -> 0 | AM107: =IF(E107=E$248,W107,IF(E107=E$249,W107*(0.25/0.73),0)) -> 0
B110: N-fixing crops in previous year
F111: Type | H111: Percentage of crop preceded by this | V111: 42 | Y111: =SUMIF(E273:E281,F112,F273:F281)*H112/100 -> 0 | AA111: =0.01*Y111 -> 0 | AB111: =0.01*0.3*Y111 -> 0 | AD111: 1 | AE111: 1 | AI111: =Y111*OFFSET(Calculator!O$227,$V111,AE111) -> 0 | AJ111: 0 | AK111: =IF($E112<>"",IF(SUMIF($AC$304:$AC$306,$E112,$AG$304:$AG$306)=2,Y111,0),0) -> 0 | AL111: =IF($E112<>"",IF(SUMIF($AC$304:$AC$306,$E112,AG$304:AG$306)=3,Y111*OFFSET(Calculator!M$227,V111,0),0),0) -> 0 | AM111: =IF(E112=E$248,Y111,IF(E112=E$249,Y111*(0.25/0.73),0)) -> 0
E112: Crop type | F112: None | H112: 100 | X112: Total N | Y112: =SUM(Y28:Y111) -> 0 | AA112: =SUM(AA28:AA111) -> 0 | AB112: =SUM(AB28:AB111) -> 0 | AI112: =SUM(AI28:AI111) -> 0 | AJ112: =SUM(AJ77:AJ97,AJ28:AJ61) -> 0 | AK112: =SUM(AK77:AK97,AK28:AK61) -> 0 | AL112: =SUM(AL28:AL107) -> 0 | AM112: =SUM(AM28:AM107) -> 0
X113: For status bar | Y113: =ROUND(Y112,1) -> 0 | AB113: =SUM(AA112:AB112)*Calculator!F367 -> 0 | AL113: =44/12*Calculator!$W$252*Calculator!AL112 -> 0 | AM113: =44/12*Calculator!$W$253*Calculator!AM112 -> 0 | CS113: =E108 -> 0
CS114: =E109 -> 0
E115: =IF(BP204>0,"If you use compost or manure as fertiliser, and this practice started less than 20 years ago, be sure to add this in the sequestration tab.","") ->  | DE115: =E110 -> 0
B116: Crop protection | DE116: =E111 -> 0
E117: Crop protection applications | G117: =AB117 -> None: Approximately 0 kg active ingredient used | V117: kgCO2e pesticides | W117: =20.5*2*Z117 -> 0 | Y117: 0 | Z117: =Y117 -> 0 | AA117: =ROUND(Z117,0) -> 0 | AB117: =OFFSET(F349,AA117,) & ": Approximately " & Z117 & " kg active ingredient used" -> None: Approximately 0 kg active ingredient used
H119: ="Baled and sold off farm: " &(100-AB121) & "%" -> Baled and sold off farm: 100%
B120: Crop residue management | E120: Thin, medium, or thick crop | F120: Medium | J120: =(100-AB121)/100*AA121 -> 3.61 | K120: tonnes sold off farm per ha | V120: index | W120: dry matter ratio | X120: intercept | Y120: slope for yield | Z120: N ratio | AA120: estimated total | AB120: % Incorporated into soil (including after mulching) | AC120: Tonnes of residue (user override allowed) | AD120: N in above ground residue (tonnes) | AE120: N2O(kg)
H121: ="Incorporated into soil (including after mulching): " & AB121 & "%" -> Incorporated into soil (including after mulching): 0% | J121: =AB121/100*AA121 -> 0 | K121: tonnes incorporated per ha | V121: =SUMIF(F288:F301,F5,E288:E301) -> 1 | W121: =OFFSET(K288,$V121,) -> 0.89 | X121: =OFFSET(L288,$V121,) -> 1.61 | Y121: =OFFSET(M288,$V121,) -> 0.4 | Z121: =OFFSET(N288,$V121,) -> 0.006 | AA121: =SUMIF(S296:S299,F120,T296:T299)*(X121+Y121*W11) -> 3.61 | AB121: 0 | AC121: =J121 -> 0 | AD121: =AC121*Z$121 -> 0 | AE121: =$AD121*0.01*1000 -> 0
AB122: totals
B125: Field operations | F125: Number of passes (enter fractions if only part of area treated) | H125: Your actual fuel use if known (litres/ha) | I125: Default estimate (litres/ha) | V125: modelled (default emissions) per operation | W125: fuel use in litres
F126: =E310 -> Mouldboard plough | I126: =V126*G126 -> 0 | V126: =(F310*F$18+H310*F$20+I310*F$22)/100 -> 29.6 | W126: =IF(H126<>"",H126,I126) -> 0
F128: =E311 -> add furrow press for plough | I128: =V128*G128 -> 0 | V128: =(F311*F$18+H311*F$20+I311*F$22)/100 -> 4.3 | W128: 0
F130: =E312 -> Sub-soiling | I130: =V130*G130 -> 0 | V130: =(F312*F$18+H312*F$20+I312*F$22)/100 -> 32.74336283 | W130: 0
F132: =E313 -> Mole ploughing | I132: =V132*G132 -> 0 | V132: =(F313*F$18+H313*F$20+I313*F$22)/100 -> 46.20743363 | W132: 0
F134: =E314 -> Flat lifting | I134: =V134*G134 -> 0 | V134: =(F314*F$18+H314*F$20+I314*F$22)/100 -> 32.74336283 | W134: 0
F136: =E315 -> Stubble cultivation (light) | I136: =V136*G136 -> 0 | V136: =(F315*F$18+H315*F$20+I315*F$22)/100 -> 19.3840708 | W136: 0
F138: =E316 -> Discing shallow | I138: =V138*G138 -> 0 | V138: =(F316*F$18+H316*F$20+I316*F$22)/100 -> 9.333333333 | W138: 0
F140: =E317 -> Discing deep | I140: =V140*G140 -> 0 | V140: =(F317*F$18+H317*F$20+I317*F$22)/100 -> 14 | W140: 0
F142: =E318 -> Power harrowing | I142: =V142*G142 -> 0 | V142: =(F318*F$18+H318*F$20+I318*F$22)/100 -> 22.2 | W142: 0
F144: =E319 -> Spring tine | I144: =V144*G144 -> 0 | V144: =(F319*F$18+H319*F$20+I319*F$22)/100 -> 14.87858407 | W144: 0
F146: =E320 -> Pressing | I146: =V146*G146 -> 0 | V146: =(F320*F$18+H320*F$20+I320*F$22)/100 -> 16.81699115 | W146: 0
F148: =E321 -> Tillage train (eg Discorden type) | I148: =V148*G148 -> 0 | V148: =(F321*F$18+H321*F$20+I321*F$22)/100 -> 29.78336283 | W148: 0
F150: =E322 -> Min till cultivator | I150: =V150*G150 -> 0 | V150: =(F322*F$18+H322*F$20+I322*F$22)/100 -> 21.5 | W150: =IF(H150<>"",H150,I150) -> 0
F152: =E323 -> Rolling | I152: =V152*G152 -> 0 | V152: =(F323*F$18+H323*F$20+I323*F$22)/100 -> 5.55 | W152: 0
F154: =E324 -> Flat lift rape drilling | I154: =V154*G154 -> 0 | V154: =(F324*F$18+H324*F$20+I324*F$22)/100 -> 36.7 | W154: 0
F156: =E325 -> Conventional drill | I156: =V156*G156 -> 0 | V156: =(F325*F$18+H325*F$20+I325*F$22)/100 -> 4 | W156: 0
F158: =E326 -> Powerharrow drill | I158: =V158*G158 -> 0 | V158: =(F326*F$18+H326*F$20+I326*F$22)/100 -> 26.2 | W158: 0
F160: =E327 -> Cultivator drills | I160: =V160*G160 -> 0 | V160: =(F327*F$18+H327*F$20+I327*F$22)/100 -> 11 | W160: 0
F162: =E328 -> Direct drill | I162: =V162*G162 -> 0 | V162: =(F328*F$18+H328*F$20+I328*F$22)/100 -> 20 | W162: 0
F164: Number of times
F165: =E329 -> Solid fertiliser distributing | I165: =V165*G165 -> 0 | V165: =(F329*F$18+H329*F$20+I329*F$22)/100 -> 1.2 | W165: =IF(H165<>"",H165,I165) -> 0
F167: =E330 -> Spraying | I167: =V167*G167 -> 0 | V167: =(F330*F$18+H330*F$20+I330*F$22)/100 -> 0.8 | W167: =IF(H167<>"",H167,I167) -> 0
F169: =E331 -> Liquid fertiliser application | I169: =V169*G169 -> 0 | V169: =(F331*F$18+H331*F$20+I331*F$22)/100 -> 0.8 | W169: =IF(H169<>"",H169,I169) -> 0
F171: =E332 -> ATV spreading | I171: =V171*G171 -> 0 | V171: =(F332*F$18+H332*F$20+I332*F$22)/100 -> 2 | W171: =IF(H171<>"",H171,I171) -> 0
F173: Number of times
F174: =E334 -> Combining | I174: =V174*G174 -> 0 | V174: =(F334*F$18+H334*F$20+I334*F$22)/100 -> 15.4 | W174: =IF(H174<>"",H174,I174) -> 0
F176: =E335 -> Add for straw chopping | I176: =V176*G176 -> 0 | V176: =(F335*F$18+H335*F$20+I335*F$22)/100 -> 4 | W176: 0
F178: =E336 -> OSR swathing | I178: =V178*G178 -> 0 | V178: =(F336*F$18+H336*F$20+I336*F$22)/100 -> 7.361290323 | W178: 0
F180: =E337 -> Baling - Small rectangular | I180: =V180*G180 -> 0 | V180: =(F337*F$18+H337*F$20+I337*F$22)/100 -> 4.788557214 | W180: 0
F182: =E338 -> Baling - Round | I182: =V182*G182 -> 0 | V182: =(F338*F$18+H338*F$20+I338*F$22)/100 -> 7.935323383 | W182: 0
F184: =E339 -> Baling - Heston type | I184: =V184*G184 -> 0 | V184: =(F339*F$18+H339*F$20+I339*F$22)/100 -> 9.5 | W184: 0
F186: Other diesel use e.g. carting | W186: =H186 -> 0 | Y186: for use in user bar
V187: litres | W187: =SUM(W126:W186) -> 0 | Y187: =W187 -> 0
V188: kgCO2e | W188: =Y187*AB197 -> 0
B191: Grain drying | E191: Grain drying | F191: No | I191: ="Your estimated energy consumption for this drying phase is " & ROUND(Z192,1) & " KWh. If you know your energy use you may enter it here" -> Your estimated energy consumption for this drying phase is 0 KWh. If you know your energy use you may enter it here | L191: =Z192 -> 0 | M191: KWh (total) | V191: energy source | W191: Grid electicity | Y191: water evaporated | Z191: =IF(F191="Yes",MAX(0,W13*1000),0) -> 0
E192: Moisture content after drying % | F192: =SUMIF(F$288:F$304,F$5,J$288:J$304) -> 14.5 | V192: dryer efficiency Kwh/kg | W192: 3.6 | Y192: estimated energy use | Z192: =W192*Z191/W192 -> 0 | AB192: emission per MJ | AC192: CO2 emissions
Y193: user override if entered | Z193: =IF(L191<>"",L191,Z192) -> 0 | AA193: * | AB193: 0.124511777 | AC193: =IF(F191="Yes",AB193*Z193*3.6,0) -> 0
B195: Transport to offsite drying facility | E195: Transport to third party
E196: Distance (miles) | I196: ="Your estimated diesel use for transport is " &ROUND(Z196,1)& " litres. If you know your diesel use you can enter it here." -> Your estimated diesel use for transport is 0 litres. If you know your diesel use you can enter it here. | L196: =Z196 -> 0 | M196: litres | W196: factor | Y196: estimated diesel used | Z196: =F196*W197*W11*W198*1.612 -> 0 | AB196: kg CO2-eq/litre | AC196: CO2 emissions
V197: assume truck weight is 1/3 of laden weight and that it returns empty | W197: =5/3 -> 1.666666667 | Y197: user override if entered | Z197: =IF(L196="",Z196,L196) -> 0 | AA197: * | AB197: 2.68 | AC197: =Z197*AB197 -> 0
V198: litres/mile/tonne adapted from *** | W198: =0.12038/AB197 -> 0.04491791045
E201: Emissions | H201: kg CO2 | I201: kg N2O | J201: kgCO2e per hectare | L201: kgCO2e per tonne
E202: Fertiliser production | H202: =AI112 -> 0 | J202: =H202+Calculator!F$366*I202 -> 0 | L202: =IF(W$11=0,0,J202/W$11) -> 0
E203: Fertiliser-induced field emissions | H203: =AL113+AM113 -> 0 | I203: =AB113 -> 0 | J203: =H203+Calculator!F$366*I203 -> 0 | L203: =IF(W$11=0,0,J203/W$11) -> 0
E204: Agrochemicals | H204: =W117 -> 0 | J204: =H204+Calculator!F$366*I204 -> 0 | L204: 0
E205: Crop residue management | I205: =AE121 -> 0 | J205: =H205+Calculator!F$366*I205 -> 0 | L205: 0
E206: Field energy use | H206: =W188 -> 0 | J206: =H206+Calculator!F$366*I206 -> 0 | L206: 0
E207: Grain drying | H207: =AC193 -> 0 | J207: =H207+Calculator!F$366*I207 -> 0 | L207: 0
E208: Transport off site | H208: =AC197 -> 0 | J208: =H208+Calculator!F$366*I208 -> 0 | L208: 0
E209: Totals | H209: =SUM(H202:H205) -> 0 | I209: =SUM(I202:I205) -> 0 | J209: =SUM(J202:J208) -> 0 | L209: =SUM(L202:L208) -> 0
D223: Fertiliser analysis and production emissions
E225: Database used for fertiliser production emissions | P225: Kongshaug 1998 (Average Europe) | Q225: Kongshaug 1998 (Average Europe) | R225: FLAG: synthetic/FYM/Compost/lime | S225: Sources
F226: Index | H226: N | I226: P | J226: K | K226: P2O5 | L226: K2O | M226: CaCO3 | N226: SO3 | O226: Readily available N | P226: 1 | Q226: 2
E229: Ammonium nitrate | F229: 2 | H229: 0.34 | I229: =0.436*K229 -> 0 | J229: =38/46*L229 -> 0 | K229: 0 | L229: 0 | M229: 0 | N229: 0 | O229: =H229 -> 0.34 | P229: 2.38 | Q229: 1.13 | R229: 0 | S229: Kongshaug
E230: Ammonium sulphate | F230: 3 | H230: 0.21 | I230: 0 | J230: =38/46*L230 -> 0 | K230: 0 | L230: 0 | M230: 0 | N230: 0.6 | O230: 0.21 | P230: 0.34 | Q230: 0.34 | R230: 0 | S230: Kongshaug
E231: Ammonium sulphate nitrate | F231: 4 | H231: 0.21 | I231: 0 | J231: 0 | K231: 0 | L231: 0 | M231: 0 | N231: =N230*(1-V230/100) -> 0.6 | O231: 0.21 | R231: 0 | S231: Kongshaug
E232: Anhydrous ammonia | F232: 5 | H232: 0.82 | I232: 0 | J232: =38/46*L232 -> 0 | K232: 0 | L232: 0 | M232: 0 | N232: 0 | O232: 0.82 | P232: 1.91 | Q232: =NA() ->  | R232: 0 | S232: Kongshaug
E233: Calcium ammonium nitrate | F233: 6 | H233: 0.27 | I233: 0 | J233: 0 | K233: 0 | L233: 0 | M233: 0 | N233: 0 | O233: 0.27 | P233: 1.81 | Q233: 0.79 | R233: 0 | S233: Kongshaug
E234: Calcium nitrate | F234: 7 | H234: 0.15 | I234: 0 | J234: 0 | K234: 0 | L234: 0 | M234: 0 | N234: 0 | O234: 0.15 | P234: 1.69 | Q234: 0.61 | R234: 0 | S234: Kongshaug
E235: Compound NK | F235: 8 | H235: 0.14 | I235: 0 | J235: 0.3634782609 | K235: 0 | L235: 0.44 | M235: 0 | N235: 0 | O235: 0.14 | P235: 1.97 | Q235: =NA() ->  | R235: 0 | S235: Kongshaug
E236: Compound NPK | F236: 9 | H236: 0.15 | I236: =0.436*K236 -> 0.0654 | J236: 0.1239130435 | K236: 0.15 | L236: 0.15 | M236: 0 | N236: 0 | O236: 0.15 | P236: =($U$190/100)*P229+($V$190/100)*P247+($W$190/100)*P243 -> 0 | Q236: =($U$190/100)*Q229+($V$190/100)*Q247+($W$190/100)*Q243 ->  | R236: 0 | S236: Kongshaug
E237: Diammonium phosphate | F237: 10 | H237: 0.18 | I237: 0.20056 | J237: 0 | K237: 0.46 | L237: 0 | M237: 0 | N237: 0 | O237: 0.18 | P237: 0.46 | Q237: =NA() ->  | R237: 0 | S237: Kongshaug
E238: Kainit / Magnesium Sulphate | F238: 11 | H238: 0 | I238: 0 | J238: 0.09086956522 | K238: 0 | L238: 0.11 | M238: 0 | N238: 0.1 | O238: 0 | P238: 0 | Q238: =NA() ->  | R238: 0 | S238: NA
E239: Lime | F239: 12 | H239: 0 | I239: 0 | J239: 0 | K239: 0 | L239: 0 | M239: 0 | N239: 0 | O239: 0 | P239: 0 | Q239: =NA() ->  | R239: 3 | S239: NA
E240: Limestone | F240: 13 | H240: 0 | I240: 0 | J240: 0 | K240: 0 | L240: 0 | M240: 0.55 | N240: 0 | O240: 0 | P240: 0 | Q240: =NA() ->  | R240: 3 | S240: NA
E242: Monoammonium phosphate | F242: 15 | H242: 0.11 | I242: 0.22672 | J242: 0 | K242: 0.52 | L242: 0 | M242: 0 | N242: 0 | O242: 0.11 | P242: 0.31 | Q242: =NA() ->  | R242: 0 | S242: Kongshaug | V242: Abated N drop-down
E243: Muriate of potash | F243: 16 | H243: 0 | I243: 0 | J243: 0.4956521739 | K243: 0 | L243: 0.6 | M243: 0 | N243: 0 | O243: 0 | P243: 0.2 | Q243: =NA() ->  | R243: 0 | S243: Kongshaug | V243: No | W243: 1
E244: Phosphate/Rock Phosphate | F244: 17 | H244: 0 | I244: 0.109 | J244: 0 | K244: 0.25 | L244: 0 | M244: 0 | N244: 0 | O244: 0 | P244: =2.8*K244*77.3/1000 -> 0.05411 | Q244: =NA() ->  | R244: 0 | S244: Kongshaug | V244: Yes | W244: 2
E245: Potassium sulphate | F245: 18 | H245: 0 | I245: 0 | J245: 0.4130434783 | K245: 0 | L245: 0.5 | M245: 0 | N245: 0.45 | O245: 0 | P245: =3*L245*77.3/1000 -> 0.11595 | Q245: =NA() ->  | R245: 0 | S245: Kongshaug
E246: Super phosphate | F246: 19 | H246: 0 | I246: 0.09156 | J246: 0 | K246: 0.21 | L246: 0 | M246: 0 | N246: 0 | O246: 0 | P246: 0.02 | Q246: =NA() ->  | R246: 0 | S246: Kongshaug
E247: Triple super phosphate | F247: 20 | H247: 0 | I247: 0.20928 | J247: 0 | K247: 0.48 | L247: 0 | M247: 0 | N247: 0 | O247: 0 | P247: 0.17 | Q247: =NA() ->  | R247: 0 | S247: Kongshaug
E248: Urea | F248: 21 | H248: 0.464 | I248: 0 | J248: 0 | K248: 0 | L248: 0 | M248: 0 | N248: 0 | O248: 0.464 | P248: 0.61 | Q248: =NA() ->  | R248: 0 | S248: Kongshaug
E249: Urea ammonium nitrate solution | F249: 22 | H249: 0.32 | I249: 0 | J249: 0 | K249: 0 | L249: 0 | M249: 0 | N249: 0 | O249: 0.32 | P249: 1.31 | Q249: 0.74 | R249: 0 | S249: Kongshaug
E250: Compost | F250: 23 | H250: 0.0075 | I250: 0.001308 | J250: 0.004543478261 | K250: 0.003 | L250: 0.0055 | M250: 0 | N250: 0.0026 | O250: 0.0002 | P250: 0 | Q250: 0 | R250: 2 | S250: Assumed | V250: Non-nitrogen soil emissions
V251: volatilisation | W251: 0.01
V252: Limestone | W252: 0.12
E253: Cattle farmyard manure | F253: 26 | H253: 0.006 | I253: 0.0013952 | J253: 0.006608695652 | K253: 0.0032 | L253: 0.008 | M253: 0 | N253: 0.0024 | O253: 0.0012 | P253: 0 | Q253: 0 | R253: 1 | S253: RB209 | V253: Urea | W253: 0.2
E254: Pig farmyard manure | F254: 27 | H254: 0.007 | I254: 0.002616 | J254: 0.006608695652 | K254: 0.006 | L254: 0.008 | M254: 0 | N254: 0.0034 | O254: 0.0018 | P254: 0 | Q254: 0 | R254: 1 | S254: RB209
E255: Sheep farmyard manure | F255: 28 | H255: 0.007 | I255: 0.0013952 | J255: 0.006608695652 | K255: 0.0032 | L255: 0.008 | M255: 0 | N255: 0.003 | O255: 0.0014 | P255: 0 | Q255: 0 | R255: 1 | S255: RB209
E256: Horse farmyard manure | F256: 29 | H256: 0.007 | I256: 0.00218 | J256: 0.004956521739 | K256: 0.005 | L256: 0.006 | M256: 0 | N256: 0 | O256: 0.0016 | P256: 0 | Q256: 0 | R256: 1 | S256: RB209
E257: Poultry layer manure | F257: 30 | H257: 0.019 | I257: 0.006104 | J257: 0.007847826087 | K257: 0.014 | L257: 0.0095 | M257: 0 | N257: 0.004 | O257: 0.0095 | P257: 0 | Q257: 0 | R257: 1 | S257: RB209
E258: Broiler/Turkey litter | F258: 31 | H258: 0.03 | I258: 0.0109 | J258: 0.01486956522 | K258: 0.025 | L258: 0.018 | M258: 0 | N258: 0.008 | O258: 0.0105 | P258: 0 | Q258: 0 | R258: 1 | S258: RB209 | V258: densities for liquid fertilisers | W258: kg | X258: litres
E259: Cattle slurry | F259: 32 | H259: 0.0026 | I259: 0.0005232 | J259: 0.002643478261 | K259: 0.0012 | L259: 0.0032 | M259: 0 | N259: 0.0007 | O259: 0.0012 | P259: 0 | Q259: 0 | R259: 1 | S259: RB209 | W259: 1 | X259: 1.32 | Z259: kgs/ha product | AA259: 1
E260: Pig slurry | F260: 33 | H260: 0.0036 | I260: 0.0007848 | J260: 0.001982608696 | K260: 0.0018 | L260: 0.0024 | M260: 0 | N260: 0.001 | O260: 0.0025 | P260: 0 | Q260: 0 | R260: 1 | S260: RB209 | W260: 1 | X260: 1.3 | Z260: litres/ha product | AA260: 2
E261: Separated Pig slurry - liquid part | F261: 34 | H261: 0.0036 | I261: 0.0006976 | J261: 0.001982608696 | K261: 0.0016 | L261: 0.0024 | M261: 0 | N261: 0 | O261: 0.0022 | P261: 0 | Q261: 0 | R261: 1 | S261: RB209
E262: Separated Pig slurry - solid part | F262: 35 | H262: 0.005 | I262: 0.0020056 | J262: 0.001817391304 | K262: 0.0046 | L262: 0.0022 | M262: 0 | N262: 0 | O262: 0.0013 | P262: 0 | Q262: 0 | R262: 1 | S262: RB209
E264: Digested liquid | F264: 37 | H264: 0.002 | I264: 0.001308 | J264: 0.0008260869565 | K264: 0.003 | L264: 0.001 | O264: 0.0008 | P264: 0 | Q264: 0 | R264: 1 | S264: RB209
E265: Digested cake | F265: 38 | H265: 0.011 | I265: 0.0007848 | J265: 0.0004956521739 | K265: 0.0018 | L265: 0.0006 | O265: 0.0016 | P265: 0 | Q265: 0 | R265: 1 | S265: RB209
E266: Thermally dried | F266: 39 | H266: 0.04 | I266: 0.03052 | J266: 0.001652173913 | K266: 0.07 | L266: 0.002 | O266: 0.002 | P266: 0 | Q266: 0 | R266: 1 | S266: RB209
E267: Lime stabilised | F267: 40 | H267: 0.0085 | I267: 0.011336 | J267: 0.0006608695652 | K267: 0.026 | L267: 0.0008 | O267: 0.0009 | P267: 0 | Q267: 0 | R267: 1 | S267: RB209
E268: Composted | F268: 41 | H268: 0.011 | I268: 0.002616 | J268: 0.00247826087 | K268: 0.006 | L268: 0.003 | O268: 0.0006 | P268: 0 | Q268: 0 | R268: 1 | S268: RB209
B272: Green manures | E272: Range of cover crops | F272: RAN | H272: N
E273: None | F273: =H273/6 -> 0 | H273: 0
E274: Forage peas | F274: =H274/6 -> 13.33333333 | H274: 80
E275: Lucerne (silage) | F275: 16.66666667 | H275: 100
E276: Red clover (silage) | F276: 16.66666667 | H276: 100
E277: White clover/grass (silage) | F277: 16.66666667 | H277: 100
E278: Clover/grass (grazed) | F278: 20 | H278: 120
E279: Lupin | F279: 21.66666667 | H279: 130
E280: Field Bean | F280: 21.66666667 | H280: 130
E281: Vetch (cut and mulched) | F281: 25 | H281: 150
B286: Crop classification | E286: Default residues from IPCC model
E288: New index | F288: [Select] | H288: =Calculator!T289 -> 0 | I288: Default moisture | J288: Dried to | K288: Dry matter fraction harvested | L288: slope | M288: intercept | N288: N content - above ground
E289: 1 | F289: nabim 1 - wheat for breadmaking | H289: =Calculator!T290 -> 0 | I289: 20 | J289: 14.5 | K289: 0.89 | L289: 1.61 | M289: 0.4 | N289: 0.006
E290: 2 | F290: nabim 2 - wheat breadmaking and other | H290: Grain | I290: 20 | J290: 14.5 | K290: 0.89 | L290: 1.61 | M290: 0.4 | N290: 0.006 | S290: Options for weight dropdown
E291: 3 | F291: nabim 3 - wheat for biscuit, etc | H291: Grain | I291: 20 | J291: 14.5 | K291: 0.89 | L291: 1.61 | M291: 0.4 | N291: 0.006 | S291: Fresh weight
E292: 4 | F292: Group 4 - wheat for animal feed, biofuel, etc . | H292: Grain | I292: 20 | J292: 14.5 | K292: 0.89 | L292: 1.61 | M292: 0.4 | N292: 0.006 | S292: Dried weight
E293: 5 | F293: Malting barley | H293: Grain | I293: 20 | J293: 14.5 | K293: 0.89 | L293: 0.98 | M293: 0.59 | N293: 0.007
E294: 6 | F294: Feed barley | H294: =Calculator!T295 -> 0 | I294: 20 | J294: 14.5 | K294: 0.89 | L294: 0.98 | M294: 0.59 | N294: 0.007
E295: 7 | F295: OSR - food and fuel | H295: Oilseed | I295: 15 | J295: 9 | K295: 1 | L295: 0 | M295: 1.5 | N295: 0.0065 | S295: Options for residue defaults
E296: 8 | F296: OSR - ind. and spec. | H296: Oilseed | I296: 15 | J296: 9 | K296: 1 | L296: 0 | M296: 1.5 | N296: 0.0065 | S296: [Select] | T296: proportion of IPCC figure used
E297: 9 | F297: Linseed | H297: Oilseed | I297: 15 | J297: 9 | K297: 1 | L297: 0 | M297: 1.5 | N297: 0.0065 | S297: Thin | T297: 0.5
E298: 10 | F298: Food oats | H298: Oats | I298: 20 | J298: 14.5 | K298: 0.89 | L298: 0.91 | M298: 0.89 | N298: 0.007 | S298: Medium | T298: 1
E299: 11 | F299: Feed oats | H299: Oats | I299: 20 | J299: 14.5 | K299: 0.89 | L299: 0.91 | M299: 0.89 | N299: 0.007 | S299: Thick | T299: 1.5
E300: 12 | F300: Rye | H300: Grain | I300: 20 | J300: 14.5 | K300: =K294 -> 0.89 | L300: =L294 -> 0.98 | M300: =M294 -> 0.59 | N300: =N294 -> 0.007 | O300: * as feed barley
E301: 13 | F301: Triticale | H301: Grain | I301: 20 | J301: 14.5 | K301: =K294 -> 0.89 | L301: =L294 -> 0.98 | M301: =M294 -> 0.59 | N301: =N294 -> 0.007 | O301: * as feed barley
E302: 14 | F302: Feed peas | H302: Legume | I302: 0 | J302: 0 | K302: 0.9 | L302: 0.36 | M302: 0.68 | N302: 0.01 | O302: * as dry beans in IPCC method
E303: 15 | F303: Human consumption peas | H303: Legume | I303: 0 | J303: 0 | K303: 0.9 | L303: 0.36 | M303: 0.68 | N303: 0.01 | O303: * as dry beans in IPCC method
E304: 16 | F304: Beans | H304: Legume | I304: 0 | J304: 0 | K304: 0.9 | L304: 0.36 | M304: 0.68 | N304: 0.01 | O304: * as dry beans in IPCC method
E308: Soil modifier for tillage | F308: 1 | H308: 1 | I308: =I310/H310 -> 1.378378378
E309: Fuel use per ha | F309: Light soil | H309: Medium soil | I309: Heavy soil
E310: Mouldboard plough | F310: 29.6 | H310: 29.6 | I310: 40.8 | K310: From KS, case studies or MC/CW pers comm.
E311: add furrow press for plough | F311: =H311 -> 4.3 | H311: 4.3 | I311: =I$310/H$310*H311 -> 5.927027027 | K311: Derived from NAAC (sometimes using KS as a reference)
E312: Sub-soiling | F312: =H312 -> 32.74336283 | H312: 32.74336283 | I312: =I$310/H$310*H312 -> 45.13274336 | K312: Assuming fuel use for light soils is as for medium
E313: Mole ploughing | F313: 46.20743363 | H313: 46.20743363 | I313: =I$310/H$310*H313 -> 63.69132743 | K313: Using mouldboard heavy/medium ratio as multiplier on medium figures
E314: Flat lifting | F314: 32.74336283 | H314: 32.74336283 | I314: 45.13274336 | K314: Assumed based on other operations
E315: Stubble cultivation (light) | F315: 19.3840708 | H315: 19.3840708 | I315: 26.71858407
E316: Discing shallow | F316: 9.333333333 | H316: =2/3*H317 -> 9.333333333 | I316: 12.86486486
E317: Discing deep | F317: 14 | H317: 14 | I317: 19.2972973
E318: Power harrowing | F318: 22.2 | H318: 22.2 | I318: 30.6
E319: Spring tine | F319: 14.87858407 | H319: 14.87858407 | I319: 20.50831858
E320: Pressing | F320: 16.81699115 | H320: 16.81699115 | I320: 23.18017699
... 37 more rows

Sheet Results
C2: ="RESULTS: " & Y4 -> RESULTS: nabim 1 - wheat for breadmaking
C3: The table below shows your crops CO2 and N2O and reports them (in CO2e) per hectare and per tonne produced at final dried moisture content.
Y4: =C7 -> nabim 1 - wheat for breadmaking
C5: Below the summary table, a graph of your emissions is provided, and a suggested mitigation option is given based on the largest source of emissions. Please note that this is only an estimate and a start point for mitigation, if you have not indeed already taken the steps indicated. Please refer to HGCA's guide 'Understanding carbon footprinting for cereals and oilseeds' for further ideas and discussion of options
C7: =Calculator!F5 -> nabim 1 - wheat for breadmaking | E7: kg CO2 | F7: kg N2O | G7: kgCO2e per hectare | H7: kgCO2e per tonne
C8: =Calculator!E202 -> Fertiliser production | E8: =Calculator!H202 -> 0 | F8: =Calculator!I202 -> 0 | G8: =Calculator!J202 -> 0 | H8: =Calculator!L202 -> 0 | W8: 1 | X8: =H8 -> 0 | Y8: fertiliser production | AB8: Emissions from the production of fertiliser (particularly N fertiliser) can be substantial. Nitrate-based fertilisers using abatement technologies have significantly reduced production emissions
C9: =Calculator!E203 -> Fertiliser-induced field emissions | E9: =Calculator!H203 -> 0 | F9: =Calculator!I203 -> 0 | G9: =Calculator!J203 -> 0 | H9: =Calculator!L203 -> 0 | W9: 2 | X9: 0 | Y9: fertiliser induced field emissions | AB9: Soil N2O emissions from the use of N fertilisers and organic amendments can be quite substantial. There exist newer compounds (such as nitrification inhibitors) which can reduce field N2O emissions.
C10: Crop protection | E10: =Calculator!H204 -> 0 | F10: =Calculator!I204 -> 0 | G10: =Calculator!J204 -> 0 | H10: =Calculator!L204 -> 0 | W10: 3 | X10: 0 | Y10: pesticides | AB10: There is little data on the newer pesticides in common use.
C11: =Calculator!E205 -> Crop residue management | E11: =Calculator!H205 -> 0 | F11: =Calculator!I205 -> 0 | G11: =Calculator!J205 -> 0 | H11: =Calculator!L205 -> 0 | W11: 4 | X11: 0 | Y11: crop residue management | AB11: These can be large if left untreated in conditions (anaerobic) which favour methane emissions. If composting on farms emission may be mitigated by forced aeration composting.
C12: =Calculator!E206 -> Field energy use | E12: =Calculator!H206 -> 0 | F12: =Calculator!I206 -> 0 | G12: =Calculator!J206 -> 0 | H12: =Calculator!L206 -> 0 | W12: 5 | X12: 0 | Y12: field energy use | AB12: It is worth keeping accurate records of fuel use in the field to mitigate this as far as possible.
C13: =Calculator!E207 -> Grain drying | E13: =Calculator!H207 -> 0 | F13: =Calculator!I207 -> 0 | G13: =Calculator!J207 -> 0 | H13: =Calculator!L207 -> 0 | W13: 6 | X13: 0 | Y13: grain drying | AB13: It is reported that modern facilities have lower energy use requirements, although this must be balance against possibly increased travel costs.
C14: =Calculator!E208 -> Transport off site | E14: =Calculator!H208 -> 0 | F14: =Calculator!I208 -> 0 | G14: =Calculator!J208 -> 0 | H14: =Calculator!L208 -> 0 | W14: 7 | X14: 0 | Y14: transport off site | AB14: Although not always an option for the farmer it is valubale to consider this in context of the farm gate emissions.
C15: =Calculator!E209 -> Totals | E15: =Calculator!H209 -> 0 | F15: =Calculator!I209 -> 0 | G15: =Calculator!J209 -> 0 | H15: =Calculator!L209 -> 0 | X15: 0 | Y15: =C15 -> Totals
X17: largest source | Y17: =MAX(X8:X14) -> 0 | Z17: =OFFSET(Y7,SUMIF(X8:X15,Y17,W8:W15),) -> 0 | AC17: =OFFSET(AB7,SUMIF(X8:X15,Y17,W8:W15),) -> 0
Y20: ="In your case the largest single source of emissions is from "&Z17&". "&AC17 -> In your case the largest single source of emissions is from 0. 0
AB23: Although fertilisers generally have a signficant impact on emissions they also, of course, improve productivity. That is why the emission per tonne is generally a more useful indicator than emissions per hectare. High input systems can score well if they are matched by high outputs.
C34: Notes
C35: =IF(X15<>0,Y20,"") -> 
C38: =IF(Y17<>X8,IF(Y18<>X9,"",AB23),AB23) -> Although fertilisers generally have a signficant impact on emissions they also, of course, improve productivity. That is why the emission per tonne is generally a more useful indicator than emissions per hectare. High input systems can score well if they are matched by high outputs.

Sheet About
A1: Acknowledgement This tool, funded by AHDB, was developed as part of AHDB project “Development of a carbon footprint protocol for the UK cereals and oilseed sector”. Central to this project was to provide farmers a simple decision support tool with robust and credible outputs to increase awareness and empower farmers. We acknowledge that there is some commonality between this tool and the Cool Farm Tool, in terms of the underlying data and emissions factors, and for which we sought and obtained permission to re-use materials. However, there has been substantial innovation with regard to the interface - which is a novel, designed entirely with the field crop farmer in mind.
A8: Disclaimer While the Agriculture and Horticulture Development Board, operating through its AHDB division, seeks to ensure that the information contained within this document is accurate at the time of printing, no warranty is given in respect thereof and, to the maximum extent permitted by law, the Agriculture and Horticulture Development Board accepts no liability for loss, damage or injury howsoever caused (including that caused by negligence) or suffered directly or indirectly in relation to information and opinions contained in or omitted from this document. Reference herein to trade names and proprietary products without stating that they are protected does not imply that they may be regarded as unprotected and thus free for general use. No endorsement of named products is intended, nor is any criticism implied of other alternative, but unnamed products. AHDB is the cereals and oilseeds division of the Agriculture and Horticulture Development Board.
J19: AHDB
J20: Stoneleigh Park
J21: Warwickshire
J22: CV8 2TL
J23: cereals.ahdb.org.uk
A25: This tool can be downloaded at cereals@ahdb.org.uk. ©Agriculture and Horticulture Development Board 2012. All rights reserved.
